bitfinex-derivatives/quotes_BTCF0:USTF0_20250106
["timestamp","ask_amount","ask_price","bid_price","bid_amount"]
[1736174726515,0.19459976,99870.0,99853.0,0.37093646]
[1736174726720,0.05009,99854.0,99853.0,0.37093646]
[1736174727220,0.004,99869.0,99853.0,0.37093646]
[1736174727427,0.050099,99837.0,99836.0,0.3608]
[1736174727619,0.050103,99828.0,99827.0,0.3608]
[1736174728015,0.050109,99817.0,99816.0,0.3608]
[1736174728632,0.3608,99880.0,99816.0,0.6608]
[1736174728820,0.12109,99854.0,99853.0,0.3618]
[1736174729020,0.12009,99854.0,99853.0,0.001]
[1736174729216,0.05009,99854.0,99853.0,0.001]
[1736174729421,0.09009,99854.0,99853.0,0.001]
[1736174729824,0.05009,99854.0,99853.0,0.001]
[1736174730124,0.05009,99854.0,99830.0,0.14451776]
[1736174730125,0.4014,99854.0,99833.0,0.3608]
[1736174730336,0.0406,99854.0,99845.0,0.3608]
[1736174730520,0.0968,99866.0,99853.0,0.3608]
[1736174730721,0.0968,99866.0,99853.0,0.410891]
[1736174730917,0.051593,99855.0,99853.0,0.3608]
[1736174731119,0.061593,99855.0,99853.0,0.3608]
[1736174731929,0.066593,99855.0,99853.0,0.3608]
[1736174732120,0.001,99854.0,99853.0,0.3608]
[1736174732428,0.050094,99846.0,99842.0,0.050096]
[1736174732623,0.060094,99846.0,99843.0,0.050095]
[1736174733229,0.060094,99846.0,99845.0,0.3608]
[1736174733829,0.01,99846.0,99845.0,0.3608]
[1736174734130,0.3608,99879.0,99845.0,0.3608]
[1736174734431,0.050085,99865.0,99864.0,0.3608]
[1736174734625,0.050085,99855.0,99854.0,0.3608]
[1736174735229,0.060085,99855.0,99854.0,0.3608]
[1736174735526,0.01,99855.0,99848.0,0.050088]
[1736174735735,0.050089,99846.0,99845.0,0.3608]
[1736174735925,0.13,99846.0,99837.0,0.3608]
[1736174736129,0.13,99846.0,99845.0,0.3608]
[1736174737631,0.050083,99858.0,99845.0,0.3608]
[1736174737835,0.050088,99849.0,99840.0,0.14451776]
[1736174738028,0.07,99849.0,99848.0,0.3608]
[1736174738420,0.01,99933.0,99856.0,0.050084]
[1736174738421,0.050082,99860.0,99856.0,0.050084]
[1736174738630,0.190082,99860.0,99859.0,0.3608]
[1736174740029,0.14,99860.0,99859.0,0.3608]
[1736174740727,0.141,99860.0,99859.0,0.3608]
[1736174741425,0.141,99860.0,99859.0,0.36056163]
[1736174741625,0.141,99860.0,99859.0,0.3608]
[1736174741829,0.191082,99860.0,99859.0,0.3608]
[1736174742426,0.05,99860.0,99859.0,0.3608]
[1736174743157,0.100082,99860.0,99859.0,0.3608]
[1736174744332,0.050088,99849.0,99848.0,0.3608]
[1736174744525,0.050091,99843.0,99842.0,0.17533744]
[1736174744723,0.190091,99843.0,99842.0,0.17533744]
[1736174745927,0.050092,99841.0,99840.0,0.3608]
[1736174746224,0.050097,99831.0,99830.0,0.17533744]
[1736174746431,0.050098,99828.0,99827.0,0.23378326]
[1736174746627,0.210098,99828.0,99827.0,0.23378326]
[1736174746838,0.3608,99845.0,99833.0,0.050095]
[1736174747033,0.050098,99829.0,99827.0,0.28388126]
[1736174747241,0.060098,99829.0,99827.0,0.23378326]
[1736174748038,0.060098,99829.0,99822.0,0.17754292]
[1736174748336,0.050101,99823.0,99822.0,0.17754292]
[1736174748536,0.190101,99823.0,99822.0,0.17754292]
[1736174749227,0.050103,99819.0,99818.0,0.0919415]
[1736174749435,0.050106,99813.0,99812.0,0.29222907]
[1736174749736,0.050106,99813.0,99803.0,0.35063489]
[1736174749737,0.05011,99804.0,99803.0,0.35063489]
[1736174750044,0.54091,99804.0,99803.0,0.35063489]
[1736174750342,0.050116,99792.0,99791.0,0.40912071]
[1736174750537,0.060116,99792.0,99791.0,0.40912071]
[1736174751038,0.01,99792.0,99791.0,0.40912071]
[1736174751238,0.01,99792.0,99790.0,0.050117]
[1736174751631,0.00150364,99812.0,99811.0,0.050107]
[1736174751832,0.0963,99839.0,99811.0,0.7216]
[1736174752037,0.0501,99824.0,99823.0,0.3608]
[1736174752347,0.05011,99805.0,99803.0,0.3608]
[1736174752533,0.20011,99805.0,99803.0,0.3608]
[1736174753137,0.15,99805.0,99803.0,0.41091]
[1736174753839,0.20011,99805.0,99803.0,0.3608]
[1736174754140,0.15,99805.0,99795.0,0.3608]
[1736174754447,0.050114,99797.0,99795.0,0.3608]
[1736174754640,0.05,99797.0,99796.0,0.050114]
[1736174755140,0.05,99797.0,99795.0,0.3608]
[1736174755332,0.050114,99796.0,99795.0,0.3608]
[1736174755535,0.01,99796.0,99795.0,0.419915]
[1736174755939,0.050107,99811.0,99796.0,0.050114]
[1736174756140,0.04,99811.0,99810.0,0.3608]
[1736174757649,0.050096,99833.0,99830.0,0.050097]
[1736174757840,0.200096,99833.0,99832.0,0.3608]
[1736174758950,0.201096,99833.0,99832.0,0.3608]
[1736174759636,0.153,99833.0,99832.0,0.7216]
[1736174759835,0.153,99833.0,99832.0,0.771696]
[1736174760037,0.003,99833.0,99832.0,0.771696]
[1736174760240,0.50531776,99870.0,99832.0,0.771696]
[1736174760439,0.14150297,99852.0,99851.0,0.3608]
[1736174760651,0.00150297,99852.0,99851.0,0.410887]
[1736174761552,0.09150297,99852.0,99851.0,0.410887]
[1736174761856,0.09150297,99852.0,99851.0,0.3608]
[1736174762148,0.09150297,99852.0,99851.0,0.3618]
[1736174763147,0.09150297,99852.0,99851.0,0.3628]
[1736174764467,0.00150297,99852.0,99851.0,0.3628]
[1736174764665,0.03150297,99852.0,99851.0,0.3628]
[1736174764866,0.03150297,99852.0,99851.0,0.3608]
[1736174765065,0.03150297,99852.0,99851.0,0.3618]
[1736174765470,0.03150297,99852.0,99851.0,0.3608]
[1736174765664,0.03250297,99852.0,99851.0,0.3608]
[1736174765873,0.08258897,99852.0,99851.0,0.3608]
[1736174766165,0.08158897,99852.0,99851.0,0.3628]
[1736174766367,0.03150297,99852.0,99851.0,0.412887]
[1736174766575,0.03150297,99852.0,99851.0,0.413887]
[1736174767267,0.03150297,99852.0,99851.0,0.412887]
[1736174768573,0.050078,99869.0,99851.0,0.412887]
[1736174768776,0.210078,99869.0,99864.0,0.05008]
[1736174769086,0.050073,99878.0,99874.0,0.050075]
[1736174769268,0.050073,99878.0,99866.0,0.3608]
[1736174769269,0.16,99878.0,99877.0,0.3608]
[1736174769461,0.210073,99878.0,99877.0,0.3608]
[1736174770478,0.050075,99874.0,99872.0,0.050076]
[1736174770774,0.050075,99874.0,99866.0,0.3608]
[1736174770775,0.001,99869.0,99868.0,0.050078]
[1736174770971,0.141,99869.0,99868.0,0.050078]
[1736174771275,0.14,99869.0,99868.0,0.050078]
[1736174771472,0.14,99869.0,99844.0,0.3608]
[1736174771675,0.050092,99840.0,99838.0,0.050093]
[1736174771877,0.190092,99840.0,99838.0,0.050093]
[1736174772176,0.14,99840.0,99838.0,0.050093]
[1736174772476,0.14,99840.0,99839.0,0.3608]
[1736174772872,0.141,99840.0,99839.0,0.3608]
[1736174773271,0.001,99840.0,99839.0,0.3608]
[1736174773663,0.0986,99858.0,99839.0,0.3608]
[1736174773664,0.050085,99855.0,99840.0,0.050092]
[1736174773976,0.050085,99854.0,99853.0,0.3608]
[1736174774172,0.190085,99854.0,99853.0,0.3608]
[1736174774776,0.14,99854.0,99839.0,0.3718]
[1736174774971,0.14,99854.0,99851.0,0.3608]
[1736174775276,0.050089,99846.0,99845.0,0.05009]
[1736174775470,0.160089,99846.0,99845.0,0.05009]
[1736174775972,0.11,99846.0,99845.0,0.05009]
[1736174776971,0.11,99846.0,99845.0,0.05309]
[1736174777975,0.11,99846.0,99845.0,0.05809]
[1736174778472,0.160089,99846.0,99845.0,0.005]
[1736174778673,0.160089,99846.0,99845.0,0.008]
[1736174778872,0.160089,99846.0,99845.0,0.003]
[1736174779073,0.160089,99846.0,99845.0,0.05709]
[1736174779279,0.11,99846.0,99845.0,0.41789]
[1736174779777,0.11,99846.0,99845.0,0.41689]
[1736174780565,0.11,99846.0,99845.0,0.41289]
[1736174780770,0.11,99846.0,99845.0,0.41489]
[1736174781196,0.050087,99851.0,99850.0,0.050087]
[1736174781376,0.090087,99851.0,99850.0,0.050087]
[1736174781672,0.050089,99846.0,99845.0,0.41789]
[1736174781868,0.180089,99846.0,99845.0,0.3628]
[1736174782176,0.180089,99846.0,99845.0,0.3678]
[1736174782581,0.180089,99846.0,99845.0,0.41789]
[1736174783367,0.180089,99846.0,99845.0,0.3668]
[1736174783582,0.180089,99846.0,99845.0,0.3618]
[1736174784181,0.180089,99846.0,99845.0,0.3648]
[1736174785279,0.180089,99846.0,99845.0,0.3618]
[1736174785484,0.180089,99846.0,99845.0,0.002]
[1736174785685,0.540889,99846.0,99845.0,0.002]
[1736174785882,0.540889,99846.0,99812.0,0.36230272]
[1736174785883,0.7908,99846.0,99826.0,0.29628866]
[1736174786078,0.050099,99827.0,99826.0,0.27382866]
[1736174786280,0.180099,99827.0,99826.0,0.27382866]
[1736174786581,0.050103,99818.0,99817.0,0.35556132]
[1736174786879,0.540903,99818.0,99817.0,0.35556132]
[1736174787279,0.050106,99813.0,99812.0,0.00150272]
[1736174787580,0.050106,99813.0,99796.0,0.35556132]
[1736174787581,0.050114,99797.0,99796.0,0.40567532]
[1736174787885,0.01,99797.0,99796.0,0.40567532]
[1736174788781,0.050108,99811.0,99810.0,0.050107]
[1736174788977,0.120108,99811.0,99810.0,0.050107]
[1736174789484,0.07,99811.0,99808.0,0.3608]
[1736174789675,0.050108,99809.0,99808.0,0.3608]
[1736174789877,0.16,99809.0,99808.0,0.3608]
[1736174790183,0.050109,99807.0,99806.0,0.3608]
[1736174790387,0.01,99807.0,99806.0,0.410909]
[1736174791483,0.001,99811.0,99806.0,0.410909]
[1736174791782,0.011,99811.0,99810.0,0.410907]
[1736174791971,0.0501,99825.0,99824.0,0.0501]
[1736174792172,0.11935733,99835.0,99834.0,0.050095]
[1736174792375,0.11935733,99835.0,99834.0,0.410895]
[1736174793593,0.050086,99853.0,99852.0,0.050086]
[1736174793886,0.200086,99853.0,99852.0,0.410886]
[1736174794293,0.15,99853.0,99852.0,0.410886]
[1736174795288,0.151,99853.0,99852.0,0.410886]
[1736174795484,0.201086,99853.0,99852.0,0.410886]
[1736174795680,0.202086,99853.0,99852.0,0.410886]
[1736174796080,0.202086,99853.0,99837.0,0.050093]
[1736174796081,0.050092,99842.0,99841.0,0.050092]
[1736174796282,0.050094,99837.0,99836.0,0.3608]
[1736174796482,0.050095,99835.0,99834.0,0.050094]
[1736174796681,0.180095,99835.0,99834.0,0.050094]
[1736174797087,0.050097,99831.0,99830.0,0.050097]
[1736174797291,0.050099,99827.0,99826.0,0.050099]
[1736174797594,0.16,99827.0,99826.0,0.410899]
[1736174799385,0.210099,99827.0,99826.0,0.410899]
[1736174799687,0.210099,99827.0,99826.0,0.415899]
[1736174799895,0.210099,99827.0,99826.0,0.424899]
[1736174800193,0.570899,99827.0,99826.0,0.059099]
[1736174800389,0.570899,99827.0,99806.0,0.3608]
[1736174800581,0.050109,99807.0,99806.0,0.3608]
[1736174800788,0.200109,99807.0,99806.0,0.410909]
[1736174801091,0.15,99807.0,99806.0,0.410909]
[1736174801392,0.15,99807.0,99800.0,0.050112]
[1736174801393,0.050112,99801.0,99800.0,0.050112]
[1736174801596,0.200112,99801.0,99800.0,0.050112]
[1736174801779,0.15,99801.0,99800.0,0.050112]
[1736174802297,0.15,99801.0,99797.0,0.3608]
[1736174802298,0.00088001,99831.0,99798.0,0.050113]
[1736174802592,0.00088001,99831.0,99810.0,0.3608]
[1736174802593,0.19461576,99830.0,99810.0,0.3608]
[1736174802797,0.050106,99815.0,99814.0,0.050105]
[1736174803097,0.050106,99815.0,99810.0,0.3608]
[1736174803098,0.15,99815.0,99810.0,0.3608]
[1736174803388,0.050107,99811.0,99810.0,0.3608]
[1736174803596,0.190107,99811.0,99810.0,0.3608]
[1736174803787,0.190107,99811.0,99806.0,0.35556132]
[1736174803986,0.050109,99807.0,99806.0,0.35556132]
[1736174804188,0.190109,99807.0,99806.0,0.35556132]
[1736174804788,0.190109,99807.0,99800.0,0.60976059]
[1736174804789,0.050112,99801.0,99800.0,0.00052]
[1736174805001,0.050112,99800.0,99799.0,0.00850276]
[1736174805196,0.190112,99800.0,99799.0,0.00850276]
[1736174805395,0.190112,99800.0,99799.0,0.00150276]
[1736174806294,0.191112,99800.0,99799.0,0.00950276]
[1736174807095,0.192112,99800.0,99799.0,0.01850276]
[1736174809590,0.192112,99800.0,99799.0,0.00150276]
[1736174809591,0.191112,99800.0,99799.0,0.00150276]
[1736174809795,0.192112,99800.0,99799.0,0.01850276]
[1736174810602,0.142,99800.0,99799.0,0.42941576]
[1736174811495,0.11935733,99819.0,99818.0,0.050103]
[1736174811699,0.17903599,99834.0,99833.0,0.050096]
[1736174812002,0.17903599,99834.0,99833.0,0.410896]
[1736174812803,0.17903599,99834.0,99833.0,0.415896]
[1736174813006,0.050094,99838.0,99837.0,0.050094]
[1736174813198,0.050095,99834.0,99833.0,0.005]
[1736174813509,0.200095,99834.0,99833.0,0.007]
[1736174813900,0.15,99834.0,99833.0,0.007]
[1736174816203,0.050101,99823.0,99822.0,0.2381862]
[1736174816399,0.550901,99823.0,99822.0,0.2381862]
[1736174816607,0.190101,99823.0,99822.0,0.2381862]
[1736174816809,0.050104,99816.0,99815.0,0.2381862]
[1736174817003,0.200104,99816.0,99815.0,0.2381862]
[1736174817309,0.15,99816.0,99815.0,0.2381862]
[1736174817804,0.001,99823.0,99815.0,0.2381862]
[1736174818108,0.001,99823.0,99822.0,0.410901]
[1736174818109,0.041,99823.0,99822.0,0.410901]
[1736174818302,0.050091,99842.0,99822.0,0.410901]
[1736174818504,0.100091,99842.0,99841.0,0.3608]
[1736174818906,0.05,99842.0,99841.0,0.3608]
[1736174819996,0.05,99842.0,99841.0,0.3618]
[1736174821203,0.05,99842.0,99841.0,0.411892]
[1736174822111,0.05,99842.0,99841.0,0.410892]
[1736174822313,0.05,99842.0,99841.0,0.412892]
[1736174822513,0.05,99842.0,99841.0,0.413892]
[1736174822708,0.05,99842.0,99841.0,0.411892]
[1736174822904,0.05,99842.0,99841.0,0.412892]
[1736174823108,0.0985,99859.0,99855.0,0.050085]
[1736174823305,0.19158721,99856.0,99855.0,0.410885]
[1736174823702,0.14150321,99856.0,99855.0,0.410885]
[1736174824715,0.14,99856.0,99855.0,0.410885]
[1736174825010,0.0975,99869.0,99868.0,0.050078]
[1736174825313,0.2475,99869.0,99868.0,0.410878]
[1736174826111,0.2475,99869.0,99868.0,0.3608]
[1736174826307,0.15,99869.0,99868.0,0.410878]
[1736174827212,0.15,99869.0,99868.0,0.3608]
[1736174827403,0.05008,99864.0,99855.0,0.3608]
[1736174827720,0.050084,99857.0,99855.0,0.3608]
[1736174828017,0.15,99857.0,99856.0,0.050084]
[1736174829415,0.15,99857.0,99856.0,0.052084]
[1736174830015,0.15,99857.0,99856.0,0.051084]
[1736174830210,0.15,99857.0,99856.0,0.054084]
[1736174831520,0.15,99857.0,99856.0,0.053084]
[1736174831824,0.250074,99877.0,99876.0,0.050074]
[1736174832020,0.210074,99877.0,99876.0,0.410874]
[1736174832726,0.16,99877.0,99876.0,0.410874]
[1736174832923,0.050067,99891.0,99876.0,0.410874]
[1736174833227,0.190067,99891.0,99890.0,0.3608]
[1736174833430,0.14,99891.0,99890.0,0.410867]
[1736174834323,0.00150241,99898.0,99890.0,0.3608]
[1736174834517,0.15150241,99898.0,99897.0,0.3608]
[1736174835222,0.25780241,99898.0,99897.0,0.3608]
[1736174835427,0.15150241,99898.0,99897.0,0.3608]
[1736174835725,0.15750241,99898.0,99897.0,0.3608]
[1736174836822,0.20756541,99898.0,99897.0,0.3608]
[1736174845427,0.15750241,99898.0,99897.0,0.3608]
[1736174847539,0.156,99898.0,99897.0,0.3608]
[1736174847727,0.05005,99924.0,99923.0,0.05005]
[1736174848034,0.19005,99924.0,99922.0,0.3608]
[1736174848429,0.19005,99924.0,99922.0,0.410851]
[1736174848634,0.050051,99923.0,99922.0,0.3608]
[1736174848824,0.180051,99923.0,99922.0,0.3608]
[1736174849841,0.188051,99923.0,99922.0,0.3618]
[1736174850050,0.188051,99923.0,99922.0,0.411851]
[1736174851438,0.192051,99923.0,99922.0,0.411851]
[1736174853138,0.192051,99923.0,99922.0,0.3618]
[1736174859634,0.142,99923.0,99922.0,0.3618]
[1736174864650,0.442,99923.0,99913.0,0.2381862]
[1736174864855,0.442,99923.0,99904.0,0.29785247]
[1736174864856,0.05006,99905.0,99904.0,0.29785247]
[1736174865149,0.18006,99905.0,99904.0,0.29785247]
[1736174865343,0.18006,99905.0,99903.0,0.05006]
[1736174865849,0.13,99905.0,99901.0,0.65917247]
[1736174866051,0.050061,99902.0,99901.0,0.29785247]
[1736174866248,0.050065,99894.0,99893.0,0.3608]
[1736174866450,0.180065,99894.0,99893.0,0.3608]
[1736174867160,0.13,99894.0,99893.0,0.3608]
[1736174868048,0.00785207,99903.0,99893.0,0.3608]
[1736174868248,0.14,99903.0,99902.0,0.410861]
[1736174869651,0.141,99903.0,99902.0,0.410861]
[1736174870759,0.23087047,99903.0,99902.0,0.410861]
[1736174871253,0.23187047,99903.0,99902.0,0.410861]
[1736174872051,0.142,99903.0,99902.0,0.410861]
[1736174872858,0.002,99903.0,99902.0,0.410861]
[1736174877657,0.08989642,99916.0,99915.0,0.050055]
[1736174877957,0.11989642,99916.0,99915.0,0.410855]
[1736174878862,0.03,99916.0,99915.0,0.410855]
[1736174879066,0.031,99916.0,99915.0,0.410855]
[1736174880765,0.001,99916.0,99915.0,0.410855]
[1736174881764,0.041,99916.0,99915.0,0.410855]
[1736174883558,0.091054,99916.0,99915.0,0.410855]
[1736174883758,0.041,99916.0,99915.0,0.410855]
[1736174885162,0.04,99916.0,99915.0,0.410855]
[1736174885359,0.04,99916.0,99915.0,0.411855]
[1736174885560,0.04,99916.0,99915.0,0.414855]
[1736174886461,0.04,99916.0,99915.0,0.3648]
[1736174886669,0.04,99916.0,99915.0,0.414855]
[1736174888259,0.04,99916.0,99915.0,0.413855]
[1736174888860,0.04,99916.0,99915.0,0.410855]
[1736174889161,0.041,99916.0,99915.0,0.410855]
[1736174890363,0.00834817,99925.0,99918.0,0.050053]
[1736174890661,0.14,99925.0,99924.0,0.41085]
[1736174891662,0.11987738,99928.0,99924.0,0.41085]
[1736174891663,0.11987738,99928.0,99927.0,0.050049]
[1736174891961,0.21987738,99928.0,99927.0,0.050049]
[1736174892367,0.1,99928.0,99927.0,0.050049]
[1736174893459,0.14978412,99951.0,99950.0,0.050037]
[1736174893655,0.14,99951.0,99950.0,0.771637]
[1736174894070,0.14978412,99956.0,99950.0,0.771637]
[1736174894366,0.28978412,99956.0,99955.0,0.050035]
[1736174895357,0.14,99956.0,99955.0,0.050035]
[1736174895965,0.145,99956.0,99955.0,0.051035]
[1736174896372,0.145,99956.0,99955.0,0.050035]
[1736174896575,0.145,99956.0,99955.0,0.051035]
[1736174897772,0.149,99956.0,99955.0,0.051035]
[1736174911692,0.149,99956.0,99950.0,0.673235]
[1736174912001,0.149,99956.0,99952.0,0.050036]
[1736174912002,0.050036,99953.0,99952.0,0.050036]
[1736174912187,0.190036,99953.0,99952.0,0.050036]
[1736174913996,0.14,99953.0,99952.0,0.050036]
[1736174914796,0.1015,99977.0,99970.0,0.050027]
[1736174915003,0.133,99971.0,99970.0,0.410827]
[1736174915392,0.03,99971.0,99970.0,0.410827]
[1736174915595,0.03871859,99971.0,99970.0,0.410827]
[1736174916999,0.20969778,100020.0,99970.0,0.410827]
[1736174917202,0.2396546,100030.0,100020.0,0.050002]
[1736174917389,0.3896546,100030.0,100020.0,0.86778744]
[1736174917593,0.25092611,100030.0,100020.0,0.86778744]
[1736174917890,0.02611854,100040.0,100030.0,0.049997]
[1736174918197,0.62909333,100050.0,100040.0,0.049992]
[1736174918502,0.05001042,100090.0,100070.0,0.049976]
[1736174918695,0.410759,100110.0,100100.0,0.9013031]
[1736174918900,0.64694444,100110.0,100100.0,0.9013031]
[1736174919101,0.74312988,100110.0,100100.0,0.9013031]
[1736174919400,0.049969,100090.0,100070.0,0.410776]
[1736174919698,0.09618544,100080.0,100070.0,0.410776]
[1736174919909,0.25618544,100080.0,100070.0,0.410776]
[1736174920493,0.25618544,100080.0,100070.0,0.58866526]
[1736174921097,0.30389189,100080.0,100070.0,0.58866526]
[1736174921499,0.31089189,100080.0,100070.0,0.58966526]
[1736174921705,0.50475578,100080.0,100070.0,0.53968926]
[1736174922005,0.81558378,100080.0,100060.0,0.049979]
[1736174922208,0.81558378,100080.0,100050.0,0.3608]
[1736174922209,0.14389189,100070.0,100050.0,0.3608]
[1736174922392,0.14389189,100070.0,100060.0,0.04998]
[1736174922799,0.50469189,100070.0,100060.0,0.04998]
[1736174923097,0.19389189,100070.0,100060.0,0.04998]
[1736174923407,0.01389546,100070.0,100060.0,0.04998]
[1736174923795,0.37469546,100070.0,100060.0,0.05098]
[1736174924095,0.59740504,100070.0,100060.0,0.001]
[1736174924297,0.18662804,100070.0,100060.0,0.049982]
[1736174924501,0.004,100070.0,100060.0,0.22271458]
[1736174925499,0.004,100070.0,100060.0,0.58351458]
[1736174926005,0.00833025,100090.0,100070.0,0.049973]
[1736174926205,0.14,100090.0,100080.0,0.049972]
[1736174926907,0.5008,100090.0,100080.0,0.049972]
[1736174927304,0.72349958,100090.0,100080.0,0.049972]
[1736174927506,0.67553258,100090.0,100080.0,0.050972]
[1736174927706,0.67653258,100090.0,100080.0,0.050972]
[1736174927899,0.5038,100090.0,100080.0,0.050972]
[1736174928493,0.5038,100090.0,100080.0,0.22370458]
[1736174928700,0.72649958,100090.0,100080.0,0.050972]
[1736174928907,0.553767,100090.0,100080.0,0.001]
[1736174929608,0.552767,100090.0,100080.0,0.001]
[1736174930403,0.552767,100090.0,100080.0,0.17373258]
[1736174930800,0.5028,100090.0,100080.0,0.22370458]
[1736174932410,0.552767,100090.0,100080.0,0.050972]
[1736174932716,0.552767,100090.0,100080.0,0.22370458]
[1736174932901,0.37007478,100100.0,100090.0,0.049967]
[1736174933097,0.42919477,100100.0,100090.0,0.22269958]
[1736174934216,0.06,100100.0,100090.0,0.52369958]
[1736174934506,0.5708,100120.0,100110.0,0.049957]
[1736174934507,0.21096001,100120.0,100110.0,0.049957]
[1736174934708,0.3608,100140.0,100110.0,0.049957]
[1736174934709,0.3608,100180.0,100160.0,0.049929]
[1736174934899,0.25647727,100220.0,100170.0,0.75619216]
[1736174935107,0.25647727,100220.0,100210.0,0.89433258]
[1736174935511,0.23621214,100230.0,100210.0,0.94423958]
[1736174935709,0.28611114,100230.0,100220.0,0.53353258]
[1736174935918,0.0001,100250.0,100230.0,0.049897]
[1736174936124,4.252e-05,100290.0,100240.0,1.06706516]
[1736174936409,4.252e-05,100290.0,100280.0,0.7216]
[1736174936609,4.252e-05,100290.0,100280.0,0.94420458]
[1736174937310,0.13032121,100320.0,100280.0,0.89433258]
[1736174937506,0.40137304,100320.0,100310.0,0.3608]
[1736174937702,0.049857,100310.0,100300.0,0.3608]
[1736174937909,1.18609258,100310.0,100280.0,0.3608]
[1736174938114,0.16,100310.0,100280.0,0.3608]
[1736174938410,0.17273258,100310.0,100290.0,0.3608]
[1736174938611,1.5,100310.0,100300.0,0.3608]
[1736174939011,0.01802121,100320.0,100310.0,0.049857]
[1736174939312,0.01802121,100320.0,100310.0,0.410657]
[1736174939613,0.01802121,100320.0,100310.0,0.3608]
[1736174940007,0.01802121,100320.0,100310.0,0.410657]
[1736174940209,0.01802121,100320.0,100310.0,0.48338958]
[1736174940404,2.1e-07,100320.0,100310.0,0.78338958]
[1736174940610,2.1e-07,100320.0,100310.0,0.95612216]
[1736174940809,0.049833,100360.0,100330.0,0.049845]
[1736174941008,0.049838,100350.0,100340.0,0.3608]
[1736174941209,0.049838,100350.0,100290.0,0.62623397]
[1736174941210,0.049852,100320.0,100290.0,0.62623397]
[1736174941414,0.3608,100300.0,100260.0,1.24398283]
[1736174941607,0.3608,100300.0,100290.0,0.26487397]
[1736174941811,0.36076,100310.0,100290.0,0.26487397]
[1736174942005,0.3608,100340.0,100330.0,0.049845]
[1736174942510,0.3608,100340.0,100330.0,0.31471897]
[1736174943010,0.3608,100350.0,100330.0,0.31471897]
[1736174943011,0.3608,100350.0,100330.0,0.26487397]
[1736174943218,0.3608,100350.0,100340.0,0.049843]
[1736174943415,0.7216,100350.0,100340.0,0.26487397]
[1736174943612,0.7216,100350.0,100340.0,0.31471697]
[1736174944119,0.3608,100360.0,100340.0,0.26487397]
[1736174944316,0.3608,100360.0,100350.0,0.31471197]
[1736174944516,0.3608,100360.0,100320.0,0.26487397]
[1736174944517,0.7216,100360.0,100320.0,0.26487397]
[1736174944819,0.7216,100330.0,100310.0,0.31472797]
[1736174945017,0.7216,100330.0,100290.0,0.36132]
[1736174945018,0.3608,100330.0,100320.0,0.26487397]
[1736174945212,0.3608,100340.0,100330.0,0.049847]
[1736174945408,0.3608,100360.0,100330.0,0.26487397]
[1736174945626,0.3608,100360.0,100350.0,0.31471197]
[1736174945917,0.46916,100370.0,100360.0,0.049833]
[1736174946116,0.8292,100370.0,100360.0,0.049833]
[1736174946423,0.7216,100370.0,100360.0,0.31470697]
[1736174946715,0.3608,100380.0,100360.0,0.26487397]
[1736174946915,0.3608,100380.0,100370.0,0.31469797]
[1736174947111,0.00182638,100420.0,100380.0,0.049823]
[1736174947307,0.00153734,100490.0,100410.0,0.62567397]
[1736174947523,0.410573,100480.0,100470.0,0.26487397]
[1736174947817,0.04351482,100480.0,100470.0,0.62567397]
[1736174948212,4.261e-05,100490.0,100470.0,0.97544897]
[1736174948434,4.261e-05,100490.0,100480.0,0.62567397]
[1736174948715,0.62567397,100490.0,100460.0,0.3608]
[1736174948916,0.62567397,100490.0,100450.0,0.3608]
[1736174948917,0.3608,100470.0,100450.0,0.67545897]
[1736174949124,0.3608,100490.0,100460.0,0.3608]
[1736174949312,0.01,100520.0,100510.0,0.01]
[1736174949514,0.01149417,100560.0,100530.0,0.049747]
[1736174949742,0.049801,100630.0,100530.0,0.049747]
[1736174949743,0.26487397,100540.0,100530.0,0.3608]
[1736174949920,0.199743,100540.0,100530.0,0.3608]
[1736174950115,0.15,100540.0,100530.0,0.3608]
[1736174950425,0.3608,100580.0,100530.0,0.7216]
[1736174950717,0.049738,100550.0,100540.0,0.3608]
[1736174950916,0.049738,100550.0,100540.0,0.3708]
[1736174951124,0.049736,100560.0,100540.0,0.63567397]
[1736174951328,0.059736,100560.0,100550.0,0.3608]
[1736174951621,0.079736,100560.0,100550.0,0.3608]
[1736174951832,0.049738,100550.0,100540.0,0.3608]
[1736174952014,0.049748,100540.0,100500.0,0.1]
[1736174952214,0.049748,100540.0,100470.0,0.26487397]
[1736174952215,0.3708,100510.0,100470.0,0.26487397]
[1736174952414,0.7316,100480.0,100440.0,0.26487397]
[1736174952620,0.3608,100450.0,100440.0,0.26487397]
[1736174952825,0.3608,100450.0,100440.0,0.31466697]
[1736174953039,0.3608,100450.0,100440.0,0.26487397]
[1736174953318,0.3608,100450.0,100420.0,0.26487397]
[1736174953319,0.42059,100450.0,100420.0,0.26487397]
[1736174953518,0.42059,100450.0,100400.0,0.641091]
[1736174953519,0.7216,100430.0,100400.0,0.36539397]
[1736174953724,0.7216,100410.0,100400.0,0.36487397]
[1736174954021,0.781408,100410.0,100400.0,0.1]
[1736174954220,0.3708,100410.0,100400.0,0.36487397]
[1736174954526,0.3608,100420.0,100400.0,1.86487397]
[1736174954725,0.06178511,100420.0,100400.0,2.27548397]
[1736174954919,0.06178511,100420.0,100400.0,1.91468397]
[1736174955123,0.06178511,100420.0,100410.0,0.26487397]
[1736174955318,0.3608,100440.0,100410.0,0.31468197]
[1736174955524,0.3608,100440.0,100430.0,0.26487397]
[1736174955721,0.3608,100460.0,100430.0,0.62567397]
[1736174955913,0.3608,100460.0,100450.0,0.26487397]
[1736174956120,0.3608,100460.0,100430.0,0.3608]
[1736174956121,0.420583,100460.0,100430.0,0.31466897]